bitfinex/quotes_BTCUSD_20240803
["timestamp","ask_amount","ask_price","bid_price","bid_amount"]
[1722719071212,0.63530486,60308.0,60307.0,0.07263341]
[1722719071409,0.96693486,60308.0,60307.0,0.07263341]
[1722719072045,0.30367486,60308.0,60307.0,0.07263341]
[1722719072280,0.13785986,60308.0,60307.0,0.07263341]
[1722719072408,0.13785986,60308.0,60307.0,0.23845141]
[1722719072622,0.05005008,60325.0,60316.0,0.1419]
[1722719072826,0.331563,60321.0,60317.0,0.00331541]
[1722719073027,0.13783422,60320.0,60316.0,0.1419]
[1722719073281,0.00091301,60325.0,60317.0,0.00488985]
[1722719073473,0.1658,60314.0,60311.0,0.0706]
[1722719073621,0.16575089,60324.0,60312.0,0.00489007]
[1722719073822,0.15062128,60323.0,60312.0,0.00489007]
[1722719074066,0.15062164,60322.0,60312.0,0.00489007]
[1722719074389,0.331576,60318.0,60311.0,0.0706]
[1722719074585,0.165793,60316.0,60312.0,0.00157439]
[1722719074752,0.331576,60318.0,60312.0,0.16911859]
[1722719074967,0.13783547,60317.0,60313.0,0.00157439]
[1722719075127,0.165801,60313.0,60312.0,0.00157439]
[1722719075554,0.02600514,60317.0,60312.0,0.00157439]
[1722719075800,0.165801,60313.0,60312.0,0.00157439]
[1722719076022,0.497404,60313.0,60312.0,0.00157439]
[1722719076233,0.63524695,60313.0,60312.0,0.00157439]
[1722719076357,0.63524695,60313.0,60310.0,0.0813]
[1722719076358,0.13784295,60313.0,60310.0,0.0813]
[1722719076557,0.497437,60309.0,60308.0,0.0606]
[1722719076758,0.829075,60308.0,60307.0,0.07263341]
[1722719077025,1.50008651,60308.0,60307.0,0.07263341]
[1722719077228,1.85738589,60308.0,60307.0,0.07263341]
[1722719077399,2.00804843,60308.0,60307.0,0.07263341]
[1722719077782,1.99526027,60308.0,60307.0,0.07263341]
[1722719078821,2.32689027,60308.0,60307.0,0.07263341]
[1722719079049,2.38445008,60308.0,60307.0,0.07263341]
[1722719079263,2.73202264,60308.0,60307.0,0.07263341]
[1722719079461,2.48442172,60308.0,60307.0,0.07263341]
[1722719079670,2.51043428,60308.0,60307.0,0.07263341]
[1722719080042,2.75803823,60308.0,60307.0,0.07263341]
[1722719080245,2.65974561,60308.0,60307.0,0.07263341]
[1722719080468,2.60872321,60308.0,60307.0,0.07263341]
[1722719080668,2.41332107,60308.0,60307.0,0.07263341]
[1722719080877,2.51045272,60308.0,60307.0,0.07263341]
[1722719081080,2.58273127,60308.0,60307.0,0.07263341]
[1722719081370,2.48443865,60308.0,60307.0,0.07263341]
[1722719081690,2.48444015,60308.0,60307.0,0.07263341]
[1722719081899,2.15281015,60308.0,60307.0,0.07263341]
[1722719082324,2.22644153,60308.0,60307.0,0.07263341]
[1722719082497,2.09528127,60308.0,60307.0,0.07263341]
[1722719082898,2.10806046,60308.0,60307.0,0.07263341]
[1722719083306,1.93176046,60308.0,60307.0,0.07263341]
[1722719083518,2.08084782,60308.0,60307.0,0.07263341]
[1722719083719,2.03176046,60308.0,60307.0,0.07263341]
[1722719083922,2.0808405,60308.0,60307.0,0.07263341]
[1722719084213,1.97937851,60308.0,60307.0,0.07263341]
[1722719084381,2.05098429,60308.0,60307.0,0.07263341]
[1722719084581,2.03175901,60308.0,60307.0,0.07263341]
[1722719084936,2.08082598,60308.0,60307.0,0.07263341]
[1722719085282,2.03175901,60308.0,60307.0,0.07263341]
[1722719086397,2.08082125,60308.0,60307.0,0.07263341]
[1722719086557,2.03175901,60308.0,60307.0,0.07263341]
[1722719087379,2.10683488,60308.0,60307.0,0.07263341]
[1722719087759,2.10683274,60308.0,60307.0,0.07263341]
[1722719087967,2.18223274,60308.0,60307.0,0.07263341]
[1722719088339,2.18223274,60308.0,60297.0,0.14999999]
[1722719088340,1.567982,60298.0,60297.0,0.14999999]
[1722719088508,2.06290387,60298.0,60297.0,0.14999999]
[1722719088670,2.18590387,60298.0,60297.0,0.14999999]
[1722719089759,2.1842121,60298.0,60297.0,0.14999999]
[1722719090677,2.6544631,60298.0,60297.0,0.14999999]
[1722719090889,2.6426651,60298.0,60297.0,0.14999999]
[1722719091111,2.9743501,60298.0,60297.0,0.14999999]
[1722719091313,2.68217509,60298.0,60297.0,0.14999999]
[1722719091606,2.51485412,60298.0,60297.0,0.14999999]
[1722719091799,2.66555013,60298.0,60297.0,0.14999999]
[1722719091996,2.33386513,60298.0,60297.0,0.14999999]
[1722719092147,2.15536513,60298.0,60297.0,0.14999999]
[1722719092338,2.03175366,60298.0,60297.0,0.14999999]
[1722719092542,2.59294213,60298.0,60297.0,0.14999999]
[1722719092764,2.64198866,60298.0,60297.0,0.14999999]
[1722719093114,2.65198866,60298.0,60297.0,0.14999999]
[1722719093278,2.66724213,60298.0,60297.0,0.14999999]
[1722719093800,2.72476951,60298.0,60297.0,0.14999999]
[1722719094218,2.71622279,60298.0,60297.0,0.14999999]
[1722719094425,2.65724213,60298.0,60297.0,0.14999999]
[1722719094587,2.65724213,60298.0,60287.0,0.05047499]
[1722719094588,2.52431,60288.0,60287.0,0.05047499]
[1722719094801,2.52431,60288.0,60268.0,0.0807]
[1722719094802,0.92949,60278.0,60268.0,0.0807]
[1722719094962,2.0880289,60278.0,60268.0,0.0807]
[1722719095168,2.5428249,60278.0,60268.0,0.0807]
[1722719095415,2.2110289,60278.0,60268.0,0.0807]
[1722719095684,2.0325289,60278.0,60268.0,0.0807]
[1722719095881,2.0325289,60278.0,60269.0,0.08291805]
[1722719096105,1.94577283,60278.0,60269.0,0.08291805]
[1722719097000,1.91974796,60278.0,60269.0,0.08291805]
[1722719097425,1.91974796,60278.0,60277.0,0.22262999]
[1722719097426,1.06740507,60278.0,60277.0,0.22262999]
[1722719097617,1.06740507,60278.0,60277.0,0.30332999]
[1722719098027,0.96740507,60278.0,60277.0,0.30332999]
[1722719098231,0.13793958,60278.0,60277.0,0.30332999]
[1722719098431,0.13793958,60279.0,60277.0,0.30332999]
[1722719098597,0.01013372,60284.0,60278.0,0.14621805]
[1722719098874,0.331762,60285.0,60281.0,0.00157439]
[1722719098875,0.165879,60285.0,60281.0,0.00157439]
[1722719099105,0.331697,60296.0,60281.0,0.00489184]
[1722719099317,0.331761,60285.0,60281.0,0.00489184]
[1722719099859,0.165884,60283.0,60281.0,0.00489184]
[1722719100070,0.165886,60282.0,60281.0,0.00157439]
[1722719100524,0.02602039,60283.0,60281.0,0.00157439]
[1722719100673,0.331737,60289.0,60282.0,0.144]
[1722719100876,0.165873,60287.0,60283.0,0.00157439]
[1722719101078,0.00984628,60297.0,60283.0,0.1707747]
[1722719101079,0.13790757,60288.0,60283.0,0.1707747]
[1722719101281,0.16575089,60292.0,60283.0,0.00157439]
[1722719101479,0.165879,60285.0,60283.0,0.00157439]
[1722719101711,0.16575089,60292.0,60283.0,0.00157439]
[1722719101885,0.165874,60287.0,60283.0,0.00489156]
[1722719102091,0.331727,60291.0,60283.0,0.00157439]
[1722719102287,0.165879,60285.0,60283.0,0.00157439]
[1722719102488,0.16575089,60292.0,60284.0,0.165879]
[1722719102854,0.165871,60288.0,60285.0,0.00157439]
[1722719102991,0.32065966,60301.0,60296.0,0.165847]
[1722719103175,0.32065966,60301.0,60288.0,0.01]
[1722719103176,0.13789058,60300.0,60298.0,0.165841]
[1722719103375,0.13789058,60299.0,60294.0,0.00331665]
[1722719103578,0.13787921,60298.0,60295.0,0.00157439]
[1722719103779,0.165839,60300.0,60295.0,0.00157439]
[1722719103780,0.165838,60300.0,60295.0,0.00157439]
[1722719103983,0.02601531,60298.0,60295.0,0.16742339]
[1722719104211,0.02601531,60298.0,60295.0,0.00157439]
[1722719104413,0.13787968,60297.0,60294.0,0.00157439]
[1722719104814,0.165851,60295.0,60294.0,0.00157439]
[1722719105018,0.63543268,60295.0,60294.0,0.00157439]
[1722719105369,0.30373068,60295.0,60294.0,0.00157439]
[1722719105707,0.13787968,60295.0,60294.0,0.00157439]
[1722719106123,0.30372868,60296.0,60294.0,0.00157439]
[1722719106440,0.13787968,60295.0,60294.0,0.00157439]
[1722719106805,0.13787968,60295.0,60294.0,0.25034544]
[1722719107002,0.02601531,60298.0,60297.0,0.231745]
[1722719107205,0.02601531,60298.0,60297.0,0.31486153]
[1722719107412,0.02601531,60298.0,60297.0,0.64655253]
[1722719107775,0.16389745,60298.0,60297.0,0.311545]
[1722719108356,0.16389745,60298.0,60297.0,0.643236]
[1722719109081,0.16389745,60298.0,60297.0,0.974927]
[1722719109535,0.16389745,60298.0,60297.0,0.1457]
[1722719110058,0.16389745,60298.0,60297.0,0.974927]
[1722719110167,0.16389745,60298.0,60297.0,0.643236]
[1722719110370,0.16389745,60298.0,60297.0,0.1457]
[1722719110783,0.16389745,60298.0,60297.0,0.311545]
[1722719111020,0.16389745,60298.0,60297.0,0.1457]
[1722719111221,0.13788214,60298.0,60297.0,0.1457]
[1722719111425,0.331659,60303.0,60298.0,0.00157439]
[1722719111682,0.331707,60294.0,60293.0,0.00157439]
[1722719111833,0.331707,60294.0,60289.0,0.00157439]
[1722719111834,0.165864,60290.0,60289.0,0.00157439]
[1722719112038,0.165864,60290.0,60288.0,0.0798]
[1722719112039,0.165867,60289.0,60288.0,0.0798]
[1722719112243,0.30374792,60289.0,60288.0,0.0798]
[1722719112825,0.63548292,60289.0,60288.0,0.0798]
[1722719113024,0.96721792,60289.0,60288.0,0.0798]
[1722719113224,0.63548292,60289.0,60288.0,0.0798]
[1722719114259,0.59741489,60302.0,60288.0,0.0798]
[1722719114260,0.331683,60299.0,60288.0,0.0798]
[1722719114495,0.30076584,60298.0,60295.0,0.08291805]
[1722719114641,0.1,60302.0,60295.0,0.08291805]
[1722719114642,0.1639173,60297.0,60296.0,0.31312039]
[1722719114841,0.1639173,60297.0,60296.0,0.643242]
[1722719115046,0.01006938,60311.0,60296.0,0.331696]
[1722719115257,0.01006938,60311.0,60303.0,0.1457]
[1722719115258,0.165821,60306.0,60303.0,0.1457]
[1722719115453,0.13786748,60305.0,60303.0,0.1457]
[1722719115697,0.82913,60304.0,60303.0,0.1457]
[1722719115891,0.331667,60302.0,60295.0,0.14727439]
[1722719116096,0.13786748,60301.0,60296.0,0.0759]
[1722719116269,0.331655,60304.0,60298.0,0.165841]
[1722719116491,0.165827,60304.0,60299.0,0.165839]
[1722719116692,0.165825,60305.0,60300.0,0.165835]
[1722719116892,0.13786415,60304.0,60300.0,0.165835]
[1722719117091,0.30369015,60304.0,60299.0,0.165839]
[1722719117294,0.165824,60305.0,60299.0,0.331679]
[1722719117570,0.331636,60307.0,60298.0,0.331685]
[1722719117778,0.165829,60303.0,60302.0,0.0798]
[1722719117979,0.165838,60300.0,60298.0,0.0798]
[1722719118352,0.02601182,60304.0,60298.0,0.0798]
[1722719118651,0.1378736,60303.0,60302.0,0.165831]
[1722719118809,0.02601182,60304.0,60303.0,0.0659]
[1722719119394,0.19183782,60304.0,60303.0,0.0659]
[1722719119594,0.329707,60304.0,60303.0,0.0659]
[1722719119851,0.661359,60304.0,60303.0,0.0659]
[1722719120002,0.163881,60304.0,60299.0,0.231739]
[1722719120200,0.19183882,60304.0,60299.0,0.24137153]
[1722719120448,0.02601182,60304.0,60299.0,0.24137253]
[1722719120602,0.13787291,60303.0,60299.0,0.23174]
[1722719120945,0.165833,60302.0,60299.0,0.0659]
[1722719121148,0.165833,60302.0,60294.0,0.01652526]
[1722719121149,0.165856,60293.0,60292.0,0.0798]
[1722719121349,0.497569,60293.0,60292.0,0.0798]
[1722719121524,0.497586,60291.0,60290.0,0.0659]
[1722719121699,0.82931,60291.0,60290.0,0.0659]
[1722719121936,0.82931,60291.0,60287.0,0.0798]
[1722719121937,0.49761,60288.0,60287.0,0.0798]
[1722719122315,0.165884,60283.0,60281.0,0.0798]
[1722719122524,0.165882,60284.0,60281.0,0.0798]
[1722719122853,5.16598,60283.0,60278.0,0.0659]
[1722719123062,0.165898,60278.0,60270.0,0.0798]
[1722719123294,0.96740437,60278.0,60270.0,0.0798]
[1722719123671,1.29920037,60278.0,60270.0,0.0798]
[1722719124343,2.3343226,60278.0,60261.0,0.0625]
[1722719124514,1.78183289,60278.0,60261.0,0.0625]
[1722719124728,2.07609718,60278.0,60261.0,0.0625]
[1722719124922,2.10212221,60278.0,60261.0,0.0625]
[1722719125126,2.43391821,60278.0,60257.0,0.14999999]
[1722719125332,2.65751821,60278.0,60257.0,0.14999999]
[1722719125513,3.12189133,60278.0,60257.0,0.14999999]
[1722719125718,0.1,60270.0,60257.0,0.14999999]
[1722719125916,0.165953,60258.0,60257.0,0.14999999]
[1722719126097,1.48006191,60258.0,60257.0,0.14999999]
[1722719126296,2.14387391,60258.0,60257.0,0.14999999]
[1722719126489,2.16817391,60258.0,60257.0,0.14999999]
[1722719126690,2.3059485,60258.0,60257.0,0.14999999]
[1722719126898,2.16817391,60258.0,60257.0,0.14999999]
[1722719127104,2.17817391,60258.0,60257.0,0.14999999]
[1722719127302,2.57455991,60258.0,60257.0,0.14499999]
[1722719127508,1.65745127,60258.0,60257.0,0.14499999]
[1722719127711,1.61266791,60258.0,60257.0,0.14499999]
[1722719127915,1.94457391,60258.0,60257.0,0.14499999]
[1722719128331,1.94457391,60258.0,60247.0,0.08360599]
[1722719128332,1.261863,60248.0,60247.0,0.08360599]
[1722719128551,0.598024,60238.0,60227.0,0.14999999]
[1722719128755,1.98342289,60238.0,60227.0,0.14999999]
[1722719129179,2.10642289,60238.0,60237.0,0.14725999]
[1722719129585,2.13246733,60238.0,60237.0,0.14725999]
[1722719130064,2.1837223,60238.0,60237.0,0.14725999]
[1722719130281,2.1837223,60238.0,60227.0,0.14999999]
[1722719130282,2.05999,60228.0,60227.0,0.0192716]
[1722719130462,0.498189,60218.0,60196.0,0.7140433]
[1722719130622,0.830467,60207.0,60196.0,0.21653499]
[1722719130854,0.49828,60207.0,60196.0,0.14999999]
[1722719131014,0.25741995,60212.0,60206.0,0.13433999]
[1722719131211,0.166093,60207.0,60206.0,0.13433999]
[1722719131440,0.17874212,60207.0,60206.0,0.13433999]
[1722719131714,0.01264912,60207.0,60206.0,0.38335404]
[1722719131924,0.01264912,60207.0,60206.0,0.21725804]
[1722719132120,0.166086,60210.0,60206.0,0.21725804]
[1722719132362,0.166083,60211.0,60206.0,0.21725804]
[1722719132564,0.01372928,60209.0,60206.0,0.21725804]
[1722719132809,0.49750831,60219.0,60206.0,0.13433999]
[1722719132935,0.3236,60224.0,60206.0,0.13433999]
[1722719132936,0.332171,60210.0,60206.0,0.13433999]
[1722719133150,0.166093,60207.0,60206.0,0.13433999]
[1722719133801,0.830467,60207.0,60206.0,0.13433999]
[1722719134001,0.99461545,60207.0,60206.0,0.13433999]
[1722719134127,1.16036634,60207.0,60206.0,0.13433999]
[1722719134331,1.32840489,60207.0,60206.0,0.13433999]
[1722719134539,1.86724278,60207.0,60206.0,0.13433999]
[1722719134748,1.90149189,60207.0,60206.0,0.13433999]
[1722719134949,2.03960941,60207.0,60206.0,0.13433999]
[1722719137226,2.25891426,60207.0,60206.0,0.13433999]
[1722719137426,2.93136726,60207.0,60206.0,0.13433999]
[1722719137603,2.93136726,60207.0,60206.0,0.11852893]
[1722719137806,3.47536349,60207.0,60206.0,0.09656421]
[1722719138030,3.3096126,60207.0,60206.0,0.09656421]
[1722719138231,3.3761916,60207.0,60206.0,0.09656421]
[1722719138441,2.67869841,60207.0,60206.0,0.09656421]
[1722719138649,2.35160286,60207.0,60206.0,0.09656421]
[1722719138894,2.32554452,60207.0,60206.0,0.09656421]
[1722719139003,1.63010007,60207.0,60206.0,0.09656421]
[1722719139205,1.97542679,60207.0,60206.0,0.09656421]
[1722719139612,1.24645483,60207.0,60206.0,0.09656421]
[1722719139810,0.15023694,60207.0,60206.0,0.09656421]
[1722719140265,0.15023694,60207.0,60206.0,0.67005221]
[1722719140437,0.01211618,60207.0,60206.0,1.07474421]
[1722719140704,0.066565,60210.0,60209.0,0.166088]
[1722719140869,0.166058,60220.0,60215.0,0.08291805]
[1722719141085,0.15020454,60217.0,60216.0,0.00157439]
[1722719141281,0.01214439,60217.0,60216.0,0.00157439]
[1722719141485,0.01214439,60217.0,60216.0,0.16764239]
[1722719141683,0.332086,60226.0,60217.0,0.166066]
[1722719141882,0.16605,60223.0,60217.0,0.00489527]
[1722719142064,0.166058,60220.0,60218.0,0.00332092]
[1722719142274,0.066541,60234.0,60220.0,0.1377]
[1722719142482,0.33205,60232.0,60223.0,0.08291805]
[1722719142680,0.3038024,60231.0,60227.0,0.166036]
[1722719142946,0.16575089,60231.0,60228.0,0.00157439]
[1722719143162,0.16575089,60231.0,60226.0,0.166039]
[1722719143337,0.16602,60234.0,60228.0,0.166035]
[1722719143539,0.332028,60236.0,60228.0,0.16935536]
[1722719143772,1.023489,60243.0,60228.0,0.16935536]
[1722719143773,0.6915,60243.0,60233.0,0.08291805]
[1722719143978,0.331999,60242.0,60234.0,0.00157439]
[1722719144185,0.331999,60242.0,60233.0,0.0644]
[1722719144654,0.166018,60235.0,60234.0,0.00157439]
[1722719145012,0.49805,60235.0,60234.0,0.00157439]
[1722719145238,0.66212658,60235.0,60234.0,0.00157439]
[1722719145747,0.99415858,60235.0,60234.0,0.00157439]
[1722719145954,0.02604217,60235.0,60234.0,0.65957505]
[1722719146163,0.19205817,60235.0,60234.0,0.08017439]
[1722719146371,0.85612217,60235.0,60234.0,0.0786]
[1722719146589,0.30379028,60235.0,60220.0,0.0644]
[1722719146789,0.1,60237.0,60220.0,0.0644]
[1722719146790,0.498165,60221.0,60220.0,0.0644]
[1722719147020,0.62444994,60234.0,60220.0,0.0644]
[1722719147021,0.48641055,60234.0,60220.0,0.0644]
[1722719147247,0.13805087,60233.0,60221.0,0.00157439]
[1722719147458,0.33208,60227.0,60221.0,0.00157439]
[1722719147662,0.13805087,60226.0,60221.0,0.00157439]
[1722719147840,0.166048,60224.0,60221.0,0.00157439]
[1722719148078,0.16575089,60232.0,60221.0,0.00157439]
[1722719148286,0.13804554,60231.0,60221.0,0.00157439]
[1722719148461,0.18291805,60237.0,60221.0,0.00157439]
[1722719148462,0.166052,60222.0,60221.0,0.00157439]
[1722719148682,0.166052,60222.0,60220.0,0.0644]
[1722719148683,0.13804554,60222.0,60220.0,0.0644]
[1722719148871,0.16575089,60230.0,60221.0,0.33368439]
[1722719148872,0.33178189,60230.0,60221.0,0.33368439]
[1722719149078,0.13803849,60229.0,60221.0,0.00157439]
[1722719149312,0.166042,60226.0,60221.0,0.00157439]
[1722719149511,0.30408249,60225.0,60220.0,0.230457]
[1722719149723,0.13803849,60224.0,60220.0,0.0644]
[1722719149945,0.01175352,60225.0,60218.0,0.0786]
[1722719149946,0.30378938,60223.0,60218.0,0.0786]
[1722719150161,0.30378938,60223.0,60214.0,0.0644]
[1722719150162,0.830357,60215.0,60214.0,0.0644]
[1722719150370,0.830357,60215.0,60209.0,0.0786]
[1722719150371,0.166085,60210.0,60209.0,0.0786]
[1722719150571,0.30415564,60210.0,60209.0,0.0786]
[1722719150746,0.14965507,60210.0,60209.0,0.0786]
[1722719151162,0.64791007,60210.0,60209.0,0.0786]
[1722719151365,0.85503104,60210.0,60209.0,0.0786]
[1722719151568,0.52287181,60210.0,60209.0,0.0786]
[1722719151907,0.35678681,60210.0,60209.0,0.576864]
[1722719152114,0.35678681,60210.0,60209.0,0.90904]
[1722719152115,0.14966538,60210.0,60209.0,0.90904]
[1722719152503,0.857532,60230.0,60223.0,0.166046]
[1722719152504,0.05750023,60226.0,60223.0,0.166046]
[1722719152778,0.49750831,60225.0,60224.0,0.166044]
[1722719152978,0.332039,60234.0,60224.0,0.166044]
[1722719152979,0.22353423,60229.0,60224.0,0.166044]
[1722719153179,0.166042,60226.0,60220.0,0.08291805]
[1722719153399,0.166042,60226.0,60221.0,0.166053]
[1722719153570,0.332071,60228.0,60222.0,0.166051]
[1722719153801,0.166033,60229.0,60224.0,0.166046]
[1722719153930,0.05750023,60232.0,60227.0,0.08291805]
[1722719154137,0.05750023,60232.0,60223.0,0.332098]
[1722719154359,0.16604,60227.0,60222.0,0.16605]
[1722719154825,0.16575089,60226.0,60219.0,0.0644]
[1722719155032,0.166068,60216.0,60212.0,0.0644]
[1722719155249,0.16575089,60226.0,60212.0,0.0644]
[1722719155542,0.166062,60219.0,60213.0,0.332153]
[1722719155741,0.16575089,60218.0,60212.0,0.0644]
[1722719155973,0.166072,60215.0,60212.0,0.0644]
[1722719156181,0.332137,60216.0,60212.0,0.0644]
[1722719156381,0.166077,60213.0,60212.0,0.0644]
[1722719156512,0.16575089,60218.0,60212.0,0.0644]
[1722719156710,0.166074,60214.0,60212.0,0.0644]
[1722719156920,0.16575089,60218.0,60212.0,0.0644]
[1722719157123,0.166077,60213.0,60212.0,0.0644]
[1722719157323,0.166074,60214.0,60212.0,0.0644]
[1722719157566,0.166075,60214.0,60212.0,0.0644]
[1722719157742,0.332133,60217.0,60212.0,0.0644]
[1722719157944,0.432093,60225.0,60213.0,0.08623931]
[1722719158151,0.332094,60224.0,60220.0,0.08291805]
[1722719158350,0.32065966,60229.0,60222.0,0.166052]
[1722719158351,0.20605974,60223.0,60222.0,0.166052]
[1722719158553,0.32065966,60229.0,60221.0,0.00157439]
[1722719158554,0.02604619,60224.0,60221.0,0.00157439]
[1722719158750,0.02604619,60224.0,60223.0,0.498148]
[1722719159280,0.02604619,60224.0,60223.0,0.830247]
[1722719159751,0.02604619,60224.0,60223.0,0.498148]
[1722719159962,0.08354926,60224.0,60223.0,0.498148]
[1722719160166,0.08355035,60224.0,60223.0,0.576748]
[1722719160379,0.23028955,60224.0,60223.0,0.908847]
[1722719160585,0.22158305,60224.0,60223.0,0.908847]
[1722719160763,0.23029248,60224.0,60223.0,0.576748]
[1722719161039,0.22158305,60224.0,60223.0,0.973247]
[1722719161245,0.17278463,60224.0,60223.0,0.973247]
[1722719161461,0.17278463,60224.0,60223.0,0.641148]
[1722719161660,0.1640752,60224.0,60223.0,0.641148]
[1722719161880,0.22158305,60224.0,60223.0,0.641148]
[1722719162088,0.23021913,60224.0,60223.0,0.143]
[1722719162307,0.166051,60223.0,60218.0,0.00157439]
[1722719162509,0.13802901,60222.0,60218.0,0.00157439]
[1722719162731,0.13804471,60221.0,60218.0,0.00157439]
[1722719162934,0.00867993,60222.0,60220.0,0.166057]
[1722719163143,0.00865901,60220.0,60219.0,0.166059]
[1722719163349,0.1380393,60220.0,60218.0,0.1670913]
[1722719163592,0.6362203,60219.0,60218.0,0.0010293]
[1722719163762,0.1380393,60219.0,60218.0,0.0010293]
[1722719163972,0.31274785,60219.0,60218.0,0.0010293]
[1722719164416,0.35376624,60219.0,60218.0,0.0010293]
[1722719164635,0.35376624,60219.0,60218.0,0.830315]
[1722719164838,0.20416143,60219.0,60218.0,1.162441]
[1722719165037,0.14668785,60219.0,60218.0,1.162441]
[1722719165265,0.1380393,60219.0,60218.0,1.162441]
[1722719165497,0.1380393,60219.0,60218.0,0.830315]
[1722719165919,0.00091301,60235.0,60226.0,0.332077]
[1722719166164,0.166023,60233.0,60217.0,0.0644]
[1722719166391,0.34508235,60232.0,60230.0,0.16603]
[1722719166620,0.34508235,60231.0,60229.0,0.166032]
[1722719166827,0.34508235,60230.0,60229.0,0.166032]
[1722719167013,0.13803317,60230.0,60229.0,0.166032]
[1722719167200,0.14682283,60230.0,60225.0,0.332083]
[1722719167476,0.05748065,60228.0,60227.0,0.166035]
[1722719167702,0.00878966,60230.0,60229.0,0.498097]
[1722719167703,0.06627031,60230.0,60229.0,0.498097]
[1722719167927,0.05748065,60232.0,60231.0,0.830135]
[1722719168142,0.05748065,60233.0,60232.0,0.498073]
[1722719168346,0.13802298,60233.0,60229.0,0.301232]
[1722719168562,0.13802298,60232.0,60230.0,0.166029]
[1722719168758,0.34505745,60231.0,60229.0,0.1352]
[1722719169005,0.00091301,60235.0,60229.0,0.301232]
[1722719169006,0.34505745,60230.0,60229.0,0.301232]
[1722719169229,0.166019,60234.0,60229.0,0.301232]
[1722719169442,0.34506473,60233.0,60232.0,0.166024]
[1722719169652,0.34506473,60233.0,60229.0,0.1352]
[1722719169653,13.849427,60230.0,60229.0,0.633293]
[1722719169861,13.98745167,60230.0,60229.0,0.965358]
[1722719171493,14.01349123,60230.0,60229.0,0.965358]
[1722719171854,14.01349123,60230.0,60229.0,0.1352]
[1722719172063,14.01349123,60230.0,60229.0,0.301232]
[1722719172702,14.01349123,60230.0,60229.0,0.633297]
[1722719172878,14.01349123,60230.0,60229.0,0.965362]
[1722719173076,14.01349123,60230.0,60229.0,1.307427]
[1722719173277,14.01349123,60230.0,60229.0,1.32395226]
[1722719173524,13.87546656,60230.0,60229.0,1.83176815]
[1722719173726,13.87546656,60230.0,60229.0,1.91616698]
[1722719173927,13.87546656,60230.0,60229.0,1.82176815]
[1722719174125,13.87546656,60230.0,60229.0,1.84176815]
[1722719174329,13.87546656,60230.0,60229.0,1.91615719]
[1722719174595,12.72535786,60230.0,60229.0,2.01856815]
[1722719175026,12.72535786,60230.0,60229.0,2.00204289]
[1722719175236,12.72535786,60230.0,60229.0,2.07642143]
[1722719175450,12.72535786,60230.0,60229.0,2.00204289]
[1722719175646,12.72535786,60230.0,60229.0,2.07639794]
[1722719175850,12.72535786,60230.0,60229.0,2.00204289]
[1722719176640,12.72535786,60230.0,60229.0,3.26374289]
[1722719178034,12.72535786,60230.0,60229.0,3.31328509]
[1722719178423,12.72535786,60230.0,60229.0,3.26374289]
[1722719178806,12.72535786,60230.0,60229.0,3.27372172]
[1722719179635,12.72535786,60230.0,60229.0,2.56910583]
[1722719179865,12.72535786,60230.0,60229.0,1.562932]
[1722719180064,12.72535786,60230.0,60229.0,1.894997]
[1722719180212,12.72535786,60230.0,60229.0,2.227062]
[1722719180827,12.72535786,60230.0,60229.0,2.39281289]
[1722719181054,12.72535786,60230.0,60229.0,2.73487789]
[1722719181229,12.72035786,60230.0,60229.0,2.73487789]
[1722719181438,12.72035786,60230.0,60229.0,2.559127]
[1722719181638,12.72035786,60230.0,60229.0,1.2617]
[1722719182056,12.72923813,60230.0,60223.0,0.0602]
[1722719182323,12.89526813,60230.0,60226.0,0.166041]
[1722719182489,12.89526813,60230.0,60225.0,0.166043]
[1722719182718,12.72923813,60230.0,60226.0,0.166039]
[1722719183002,12.72923813,60230.0,60226.0,0.16604]
[1722719183425,12.72923813,60230.0,60227.0,0.166038]
[1722719183761,12.72923813,60230.0,60226.0,0.332079]
[1722719183985,12.72923813,60230.0,60228.0,0.166034]
[1722719184210,12.72923813,60230.0,60223.0,0.0602]
[1722719184413,12.89526813,60230.0,60226.0,0.16604]
[1722719184590,12.72923813,60230.0,60227.0,0.166038]
[1722719184971,12.72923813,60230.0,60224.0,0.332093]
[1722719185170,12.72923813,60230.0,60227.0,0.166037]
[1722719185398,12.72923813,60230.0,60218.0,0.002]
[1722719185399,0.166042,60226.0,60219.0,0.800518]
[1722719185625,0.166041,60226.0,60222.0,0.166051]
[1722719185829,12.72923813,60230.0,60219.0,0.96626889]
[1722719185830,0.00869165,60225.0,60224.0,0.166046]
[1722719186002,12.72035786,60230.0,60219.0,0.96626889]
[1722719186003,0.332065,60229.0,60219.0,0.63415089]
[1722719186219,12.72035786,60230.0,60226.0,0.16604]
[1722719186446,12.72035786,60230.0,60225.0,0.166042]
[1722719186694,12.88638886,60230.0,60225.0,0.166042]
[1722719186907,12.72035786,60230.0,60227.0,0.166037]
[1722719187192,12.72035786,60230.0,60226.0,0.16604]
[1722719187408,12.72035786,60230.0,60227.0,0.166037]
[1722719187648,12.72035786,60230.0,60229.0,0.580197]
[1722719187870,12.72035786,60230.0,60229.0,1.15421289]
[1722719188104,12.72035786,60230.0,60229.0,1.81834289]
[1722719188334,12.72035786,60230.0,60229.0,1.47627789]
[1722719188985,12.72035786,60230.0,60229.0,1.48627789]
[1722719189188,12.72035786,60230.0,60229.0,1.47627789]
[1722719189456,12.72035786,60230.0,60229.0,1.48627789]
[1722719189675,12.72035786,60230.0,60229.0,1.47627789]
[1722719189898,12.72035786,60230.0,60229.0,2.01314289]
[1722719190561,12.72035786,60230.0,60229.0,2.01514289]
[1722719192782,12.72035786,60230.0,60229.0,2.01597289]
[1722719193796,12.72127087,60230.0,60229.0,1.99597289]
[1722719194030,12.72127087,60230.0,60229.0,1.47710789]
[1722719194214,12.72127087,60230.0,60229.0,0.00083]
[1722719194559,12.72127087,60230.0,60229.0,0.498927]
[1722719195381,12.72127087,60230.0,60229.0,0.830992]
[1722719196635,12.72127087,60230.0,60229.0,1.48710789]
[1722719196833,12.72127087,60230.0,60229.0,2.01397289]
[1722719197034,12.72127087,60230.0,60229.0,2.08296347]
[1722719197247,12.73002082,60230.0,60229.0,2.01397289]
[1722719197453,12.73002082,60230.0,60229.0,2.0829647]
[1722719198073,12.52105631,60230.0,60229.0,2.4170297]
[1722719198276,12.52105631,60230.0,60229.0,2.5170297]
[1722719198485,12.45445631,60230.0,60229.0,2.5170297]
[1722719198696,12.45445631,60230.0,60229.0,3.7787297]
[1722719199471,12.28178631,60230.0,60229.0,4.1107947]
[1722719199672,12.25645769,60230.0,60229.0,3.82835202]
[1722719199897,12.25645769,60230.0,60229.0,3.7787297]